bitfinex/quotes_ETHUSD_20241003
["timestamp","ask_amount","ask_price","bid_price","bid_amount"]
[1727976663580,4.25369,2350.9,2350.5,5.01091]
[1727976663824,4.25369,2350.9,2350.5,9.26524]
[1727976664124,4.25369,2350.9,2350.5,5.01083]
[1727976664481,7.25296,2351.3,2350.7,4.25396]
[1727976664783,4.25305,2351.3,2350.9,4.25356]
[1727976665081,7.25289,2351.4,2350.9,4.25366]
[1727976665284,4.25317,2351.2,2350.8,4.679186]
[1727976665496,4.25302,2351.3,2350.8,8.50756]
[1727976665727,4.25302,2351.3,2350.8,4.25377]
[1727976666080,4.25302,2351.3,2350.6,4.80412]
[1727976666387,5.06122,2351.5,2350.9,4.25358]
[1727976666718,4.25294,2351.4,2351.0,0.7759]
[1727976667025,4.25294,2351.4,2351.0,5.02929]
[1727976667397,4.25298,2351.3,2351.0,0.7759]
[1727976667707,4.25289,2351.4,2351.0,0.7759]
[1727976667882,4.25296,2351.4,2351.0,0.7759]
[1727976668607,4.25316,2351.2,2350.7,1.352162]
[1727976668803,4.25304,2351.3,2350.8,0.5606292]
[1727976669124,4.25341,2351.1,2350.7,5.05012]
[1727976669426,4.25387,2350.8,2350.4,5.05068]
[1727976669582,4.25376,2350.9,2350.4,5.0506]
[1727976669787,4.25394,2350.8,2350.4,0.7961]
[1727976670034,4.2544,2350.6,2350.4,0.7961]
[1727976670335,0.85077,2350.8,2350.2,2.0]
[1727976670497,4.25433,2350.6,2350.2,2.0]
[1727976670679,4.25433,2350.6,2350.2,6.25493]
[1727976670896,0.8167,2350.6,2350.2,2.0]
[1727976671107,4.2547,2350.4,2350.2,2.0]
[1727976671647,9.32546,2350.6,2350.2,2.0]
[1727976671849,4.25472,2350.4,2350.2,2.0]
[1727976672020,4.25477,2350.3,2350.2,2.0]
[1727976672729,6.003616,2350.6,2350.2,2.0]
[1727976672938,3.0,2350.5,2350.2,6.25494]
[1727976673236,4.25396,2350.8,2350.2,6.25482]
[1727976673446,4.25396,2350.8,2350.3,4.880104]
[1727976673617,4.25407,2350.7,2350.3,4.880104]
[1727976673823,4.25407,2350.7,2350.3,4.25461]
[1727976674237,4.25472,2350.4,2350.2,2.0]
[1727976674439,4.25477,2350.3,2350.2,2.0]
[1727976674913,4.25441,2350.6,2350.2,2.0]
[1727976675113,4.25477,2350.3,2350.2,2.0]
[1727976675317,7.756137,2350.3,2350.2,2.0]
[1727976676071,8.581637,2350.3,2350.2,2.0]
[1727976680727,9.62818918,2350.3,2350.2,2.0]
[1727976680926,9.131637,2350.3,2350.2,2.0]
[1727976681762,4.25705,2349.1,2348.7,0.8239]
[1727976681968,4.25691,2349.2,2348.7,5.0814]
[1727976682149,4.25641,2349.4,2349.0,4.25711]
[1727976682398,7.25576,2349.8,2349.1,4.25686]
[1727976682399,7.25606,2349.6,2349.1,4.25686]
[1727976682667,7.25606,2349.6,2349.2,0.7532]
[1727976682881,7.25606,2349.6,2349.2,5.00996]
[1727976683026,7.25606,2349.6,2349.2,0.7532]
[1727976683027,3.0,2349.6,2349.2,0.7532]
[1727976683227,3.0,2349.6,2349.2,0.8984]
[1727976683564,4.25632,2349.5,2349.2,0.8984]
[1727976685064,3.0,2349.8,2349.4,4.25637]
[1727976685381,3.0,2349.8,2349.2,1.68165106]
[1727976685669,4.25612,2349.6,2349.2,5.15516]
[1727976686251,4.25612,2349.6,2349.2,5.15506]
[1727976687056,4.25578,2349.8,2349.3,4.25655]
[1727976687268,4.25578,2349.8,2349.4,4.25639]
[1727976687580,4.25578,2349.8,2349.4,5.15790766]
[1727976687936,4.25586,2349.7,2349.4,0.90151766]
[1727976688172,4.25578,2349.8,2349.4,0.90151766]
[1727976688385,0.754,2350.2,2349.4,0.90151766]
[1727976688688,4.2555,2349.9,2349.4,0.55]
[1727976688873,4.2555,2349.9,2349.5,4.25619]
[1727976689178,4.25612,2349.6,2349.2,5.15503]
[1727976689902,4.25588,2349.7,2349.3,4.25656]
[1727976690257,4.25588,2349.7,2349.2,5.15503]
[1727976690258,4.25545,2350.0,2349.4,4.2563]
[1727976690581,4.2556,2349.9,2349.4,4.2563]
[1727976690740,4.25576,2349.8,2349.4,4.2563]
[1727976690943,4.25576,2349.8,2349.4,8.5126]
[1727976691274,8.51117,2349.9,2349.4,8.5126]
[1727976691774,4.25558,2349.9,2349.4,4.2563]
[1727976691982,4.2557,2349.8,2349.2,5.15502]
[1727976692180,4.2557,2349.8,2349.3,4.25651]
[1727976692480,4.2559,2349.7,2349.3,4.25651]
[1727976693752,0.463098,2349.9,2349.3,4.25649]
[1727976693960,4.2557,2349.8,2349.4,4.25639]
[1727976694152,4.25586,2349.7,2349.3,4.25655]
[1727976695183,4.718738,2349.9,2349.2,5.15516]
[1727976695481,4.25589,2349.7,2349.3,4.25657]
[1727976696248,4.25589,2349.7,2349.2,5.15516]
[1727976696249,4.25608,2349.6,2349.2,5.15516]
[1727976696449,4.25647,2349.4,2349.2,0.8984]
[1727976696802,4.25658,2349.3,2349.2,0.1452]
[1727976697245,7.25658,2349.3,2349.2,0.1452]
[1727976697445,8.03838,2349.3,2349.2,0.1452]
[1727976697699,9.267865,2349.3,2349.2,0.1452]
[1727976706119,6.267865,2349.3,2349.2,0.1452]
[1727976706325,4.25658,2349.3,2349.2,0.1452]
[1727976707443,7.25658,2349.3,2349.2,0.1452]
[1727976709113,4.25658,2349.3,2349.2,0.1452]
[1727976716395,8.08168,2349.3,2349.2,0.1452]
[1727976716598,8.490395,2349.3,2349.2,0.1452]
[1727976721676,7.25658,2349.3,2349.2,0.1452]
[1727976721862,3.0,2349.3,2349.2,0.1452]
[1727976722070,7.25658,2349.3,2349.2,0.1452]
[1727976723083,8.05608,2349.3,2349.2,0.1452]
[1727976725098,7.25658,2349.3,2349.2,0.1452]
[1727976725400,8.485796,2349.3,2349.2,0.1452]
[1727976725753,7.25658,2349.3,2349.2,0.1452]
[1727976729091,1.1834,2350.1,2349.3,0.7811]
[1727976729400,4.256,2349.7,2349.3,0.7811]
[1727976729604,4.256,2349.7,2349.3,5.03768]
[1727976729965,4.256,2349.7,2349.3,0.7811]
[1727976730197,4.2563,2349.5,2349.3,0.7811]
[1727976730391,4.2564,2349.4,2349.3,0.7811]
[1727976730967,4.25612,2349.6,2349.3,0.7811]
[1727976731278,5.02254,2350.1,2349.3,0.7811]
[1727976731279,4.25633,2349.5,2349.3,0.7811]
[1727976731598,4.2564,2349.4,2349.3,0.7811]
[1727976732564,4.25633,2349.5,2349.3,0.7811]
[1727976732565,8.51269,2349.5,2349.3,0.7811]
[1727976732904,4.2564,2349.4,2349.3,0.7811]
[1727976733814,3.0,2350.0,2349.3,0.7811]
[1727976733983,3.0,2350.0,2349.5,0.8057]
[1727976733984,4.25558,2349.9,2349.5,0.8057]
[1727976734164,4.25558,2349.9,2349.5,1.311897]
[1727976734362,4.25444,2350.5,2349.9,4.25537]
[1727976734604,4.25444,2350.5,2349.8,4.08115634]
[1727976734605,4.25415,2350.7,2350.1,4.25504]
[1727976734806,4.25431,2350.6,2350.1,4.25504]
[1727976734974,4.25431,2350.6,2350.1,5.18665]
[1727976735181,4.25395,2350.8,2350.3,4.25477]
[1727976735513,4.25438,2350.6,2350.3,0.8057]
[1727976735672,4.25295,2351.4,2350.3,0.8057]
[1727976735673,4.25459,2350.4,2350.3,0.8057]
[1727976737367,4.25425,2350.6,2350.3,0.8057]
[1727976737611,4.25434,2350.6,2350.3,0.8057]
[1727976737785,4.25443,2350.5,2350.3,0.8057]
[1727976738169,4.25434,2350.6,2350.3,0.8057]
[1727976738473,4.25449,2350.5,2350.3,0.8057]
[1727976739689,4.25459,2350.4,2350.3,0.8057]
[1727976740214,4.25522,2350.1,2349.9,0.8148]
[1727976741235,4.25418,2350.7,2350.3,4.25467]
[1727976741529,0.8226,2351.1,2350.1,0.7778]
[1727976741530,4.25424,2350.6,2350.1,0.7778]
[1727976741684,4.25434,2350.6,2350.1,5.03286]
[1727976741887,4.25434,2350.6,2350.2,0.928806]
[1727976742584,4.25424,2350.6,2350.2,0.928806]
[1727976742783,4.25424,2350.6,2350.2,5.183756]
[1727976743224,0.8304,2351.3,2350.7,0.8069]
[1727976743523,4.25374,2350.9,2350.7,0.8069]
[1727976744296,4.25387,2350.8,2350.7,0.8069]
[1727976745527,4.25374,2350.9,2350.7,0.8069]
[1727976745734,8.50752,2350.9,2350.7,0.8069]
[1727976746048,4.25387,2350.8,2350.7,0.8069]
[1727976746262,4.25429,2350.6,2350.2,0.7767]
[1727976746439,4.25444,2350.5,2350.2,0.7767]
[1727976746642,4.25429,2350.6,2350.2,0.7767]
[1727976747248,8.50869,2350.6,2350.2,0.7767]
[1727976747743,4.25429,2350.6,2350.2,5.03157]
[1727976747953,4.25397,2350.8,2350.4,0.8264]
[1727976748118,4.25412,2350.7,2350.4,0.8264]
[1727976748316,4.25397,2350.8,2350.4,0.8264]
[1727976748546,4.25397,2350.8,2350.5,0.7579]
[1727976748755,4.25408,2350.7,2350.5,1.259165]
[1727976749323,4.25423,2350.6,2350.5,0.7579]
[1727976749529,4.25353,2351.0,2350.5,0.7579]
[1727976749530,4.25383,2350.9,2350.5,0.7579]
[1727976749821,8.50823,2350.7,2350.5,0.7579]
[1727976750023,4.25423,2350.6,2350.5,0.7579]
[1727976752863,4.25408,2350.7,2350.5,0.7579]
[1727976753060,4.2539,2350.8,2350.5,1.259159]
[1727976753376,4.25405,2350.7,2350.5,1.259159]
[1727976753527,4.25423,2350.6,2350.5,0.7579]
[1727976754138,4.25405,2350.7,2350.5,0.7579]
[1727976755634,8.50819,2350.7,2350.5,0.7579]
[1727976755831,4.25405,2350.7,2350.5,0.7579]
[1727976756055,8.5082,2350.7,2350.5,0.7579]
[1727976756257,4.25423,2350.6,2350.5,0.7579]
[1727976756466,4.25405,2350.7,2350.0,0.7832]
[1727976756467,4.25446,2350.5,2350.0,0.7832]
[1727976756644,4.25513,2350.1,2350.0,0.7832]
[1727976756849,0.755,2350.4,2349.6,0.7832]
[1727976757036,8.51156,2349.8,2349.6,0.7832]
[1727976757254,4.25557,2349.9,2349.6,0.7832]
[1727976757456,4.25557,2349.9,2349.6,1.56329465]
[1727976757908,4.25546,2350.0,2349.6,1.56329465]
[1727976758072,4.2548,2350.3,2349.7,0.8167]
[1727976758268,4.25542,2350.0,2349.7,0.8167]
[1727976758599,4.2552,2350.1,2349.7,0.8167]
[1727976758794,4.2552,2350.1,2349.8,0.58527147]
[1727976759002,4.25493,2350.3,2349.8,0.58527147]
[1727976759202,4.25514,2350.1,2349.8,0.58527147]
[1727976759359,4.25492,2350.3,2349.8,0.58527147]
[1727976760008,4.25492,2350.3,2349.9,0.7524]
[1727976760176,4.25453,2350.5,2350.1,0.7524]
[1727976760769,4.2546,2350.4,2350.1,0.7524]
[1727976761410,4.25495,2350.2,2350.1,0.7524]
[1727976761603,3.7541,2350.8,2350.1,0.7524]
[1727976761604,4.25454,2350.5,2350.1,0.7524]
[1727976761866,4.25495,2350.2,2350.1,0.7524]
[1727976762266,8.00808,2350.8,2350.1,0.7524]
[1727976762267,4.25424,2350.6,2350.1,0.7524]
[1727976762508,4.25495,2350.2,2350.1,0.7524]
[1727976763267,4.25481,2350.3,2350.1,0.7524]
[1727976764396,4.25447,2350.5,2350.1,0.7524]
[1727976764600,4.25461,2350.4,2350.1,0.7524]
[1727976764807,8.50897,2350.5,2350.1,0.7524]
[1727976764981,4.25447,2350.5,2350.1,0.7524]
[1727976765196,8.50904,2350.5,2350.1,0.7524]
[1727976766009,4.25462,2350.4,2350.1,0.7524]
[1727976766728,4.25462,2350.4,2350.0,0.08509066]
[1727976767029,4.25533,2350.0,2349.6,0.8244]
[1727976767238,4.25515,2350.1,2349.6,0.8244]
[1727976767528,4.25481,2350.3,2349.9,0.8054]
[1727976767728,4.25468,2350.4,2349.9,5.992528]
[1727976768296,8.5094,2350.4,2349.9,5.992528]
[1727976769130,4.25487,2350.3,2349.9,1.737068]
[1727976769343,4.25487,2350.3,2349.9,0.8054]
[1727976769493,8.50939,2350.4,2350.0,4.2553]
[1727976769694,3.0,2350.7,2349.9,0.8054]
[1727976769695,7.2541,2350.7,2349.9,0.8054]
[1727976769915,4.25493,2350.3,2349.9,0.8054]
[1727976770237,4.25531,2350.0,2349.9,0.8054]
[1727976770532,4.25531,2350.0,2349.5,5.57978]
[1727976770892,4.25531,2350.0,2349.6,4.25604]
[1727976771531,0.8169,2350.3,2349.5,0.7736]
[1727976771532,4.25551,2349.9,2349.5,0.7736]
[1727976771853,8.51189,2349.7,2349.3,0.815]
[1727976772137,0.7852,2349.8,2349.2,0.1452]
[1727976772138,4.25658,2349.3,2349.2,0.1452]
[1727976772441,5.04178,2349.3,2349.2,0.1452]
[1727976772948,8.04178,2349.3,2349.2,0.1452]
[1727976773935,4.25849,2348.3,2347.8,0.8322]
[1727976774234,8.51657,2348.4,2347.8,5.09146]
[1727976774406,4.25841,2348.3,2347.8,0.8322]
[1727976774795,4.25823,2348.4,2347.9,0.509167]
[1727976775029,4.25858,2348.2,2347.9,0.509167]
[1727976775537,8.5167,2348.4,2347.8,0.8322]
[1727976775738,4.25845,2348.3,2347.8,0.8322]
[1727976776608,4.2578,2348.7,2348.1,4.80864]
[1727976777415,4.2578,2348.7,2348.2,4.25857]
[1727976777729,4.2575,2348.8,2348.3,4.80837]
[1727976777914,8.51487,2348.9,2348.4,0.8113]
[1727976778116,4.25743,2348.9,2348.4,0.8113]
[1727976778311,8.51485,2348.9,2348.4,0.8113]
[1727976778512,1.576078,2349.2,2348.5,0.55]
[1727976778513,4.25722,2349.0,2348.5,0.55]
[1727976778710,4.25722,2349.0,2348.5,1.2026204]
[1727976778910,4.25709,2349.1,2348.7,0.55]
[1727976779416,4.2567,2349.3,2348.7,4.80751]
[1727976779747,4.2567,2349.3,2348.8,4.25747]
[1727976779951,4.2566,2349.3,2348.7,4.80751]
[1727976780151,8.5127,2349.5,2348.9,4.80719]
[1727976780401,4.25606,2349.6,2349.1,0.55]
[1727976780581,4.25623,2349.5,2349.1,0.55]
[1727976780754,4.25653,2349.4,2349.1,0.55]
[1727976780953,4.25623,2349.5,2349.1,0.55]
[1727976780954,8.51261,2349.5,2349.1,0.55]
[1727976781597,4.25644,2349.4,2349.1,0.55]
[1727976783456,4.25644,2349.4,2349.0,0.7551]
[1727976783698,4.25664,2349.3,2349.0,0.7551]
[1727976784155,4.25664,2349.3,2348.0,0.7688]
[1727976784156,4.25785,2348.6,2348.0,0.7688]
[1727976784361,0.8196,2349.2,2348.0,0.7688]
[1727976784362,4.2585,2348.3,2348.0,0.7688]
[1727976784589,4.25861,2348.2,2348.0,0.7688]
[1727976784793,4.25876,2348.1,2347.6,0.7993]
[1727976785106,4.25894,2348.0,2347.7,0.931883]
[1727976785325,4.25866,2348.2,2347.6,0.7993]
[1727976785619,4.25864,2348.2,2347.7,4.25934]
[1727976786175,4.25885,2348.1,2347.6,5.05895]
[1727976786379,4.25885,2348.1,2347.7,0.505895]
[1727976786809,4.25885,2348.1,2347.8,0.55]
[1727976786970,4.25858,2348.2,2347.8,0.55]
[1727976787420,4.2585,2348.3,2347.8,4.80929]
[1727976787808,8.51703,2348.3,2347.8,4.80929]
[1727976788134,4.2585,2348.3,2347.8,0.55]
[1727976788334,4.25866,2348.2,2347.8,0.55]
[1727976788519,4.2585,2348.3,2347.8,4.80922]
[1727976788719,4.25862,2348.2,2347.8,4.80922]
[1727976788920,4.25862,2348.2,2347.8,5.8466185]
[1727976789096,4.25862,2348.2,2347.8,1.5873985]
[1727976789295,4.2585,2348.3,2347.8,5.8466985]
[1727976789627,8.51704,2348.3,2347.8,5.8466985]
[1727976789842,4.25861,2348.2,2347.8,1.5873985]
[1727976790243,4.2593,2347.8,2347.7,0.55]
[1727976790540,4.25912,2347.9,2347.6,0.7993]
[1727976790541,8.51833,2347.9,2347.6,0.7993]
[1727976790856,5.01204,2348.2,2347.3,3.8144]
[1727976790857,0.7533,2348.2,2347.3,3.8144]
[1727976790996,4.25952,2347.7,2347.3,3.8144]
[1727976791342,4.25952,2347.7,2347.3,1.94184]
[1727976791545,4.2598,2347.6,2347.3,1.94184]
[1727976791692,4.25995,2347.5,2347.3,1.94184]
[1727976792039,4.25995,2347.5,2347.3,0.8144]
[1727976792743,4.25969,2347.6,2347.3,0.8144]
[1727976792948,4.25969,2347.6,2347.1,8.52092]
[1727976792949,4.25871,2348.2,2347.9,0.55]
[1727976793152,4.25819,2348.5,2347.9,0.55]
[1727976793153,4.25814,2348.5,2348.1,0.55]
[1727976793440,0.7675,2348.8,2348.1,0.55]
[1727976793441,4.25761,2348.8,2348.3,4.25834]
[1727976793637,4.25769,2348.7,2348.3,0.55]
[1727976793839,4.2575,2348.8,2348.3,0.55]
[1727976794042,4.25779,2348.7,2348.1,0.55]
[1727976794546,4.25836,2348.4,2348.1,1.4621237]
[1727976794697,0.829,2348.7,2348.0,0.8313]
[1727976795024,4.25876,2348.1,2348.0,0.8313]
[1727976795231,4.25923,2347.9,2347.6,0.8095]
[1727976795545,4.25923,2347.9,2347.1,4.26047]
[1727976795546,5.08782,2348.1,2347.1,0.8095]
[1727976795746,4.25985,2347.5,2347.1,0.8095]
[1727976796036,4.25982,2347.6,2347.1,0.8095]
[1727976796196,4.25994,2347.5,2347.1,1.316535]
[1727976796396,4.25994,2347.5,2347.1,0.8095]
[1727976797547,0.758,2347.4,2347.0,0.55]
[1727976797713,4.2612,2346.8,2346.6,0.8309]
[1727976797918,4.26168,2346.5,2345.9,0.8309]
[1727976798101,0.758,2346.9,2346.0,0.509372]
[1727976798300,4.26239,2346.1,2345.7,0.8309]
[1727976798611,4.26204,2346.3,2345.7,0.8309]
[1727976798949,4.26223,2346.2,2345.7,0.8309]
[1727976799703,4.26223,2346.2,2345.8,0.55]
[1727976799902,4.26218,2346.3,2345.8,1.414418]
[1727976800602,4.26253,2346.1,2345.7,0.8309]
[1727976800802,4.26266,2346.0,2345.7,0.8309]
[1727976801026,4.26253,2346.1,2345.7,0.8309]
[1727976801226,8.52508,2346.1,2345.7,0.8309]
[1727976801430,4.26253,2346.1,2345.7,0.8309]
[1727976801755,4.26286,2345.9,2345.7,0.8309]
[1727976802050,4.26257,2346.0,2345.7,0.8309]
[1727976802748,4.26155,2346.6,2345.7,0.8309]
[1727976803055,4.26221,2346.2,2345.7,0.8309]
[1727976803343,8.52458,2346.2,2345.8,0.55]
[1727976803549,4.26221,2346.2,2345.8,0.55]
[1727976803752,4.26259,2346.0,2345.8,0.55]
[1727976803920,4.26293,2345.8,2345.4,3.0]
[1727976804254,4.26187,2346.4,2345.5,3.07972534]
[1727976804255,0.7731,2346.4,2345.5,3.07972534]
[1727976804452,4.26233,2346.2,2345.5,7.34310534]
[1727976804605,8.5253,2346.0,2345.6,0.08524488]
[1727976804947,4.26276,2345.9,2345.5,3.0]
[1727976805149,4.26276,2345.9,2345.6,0.55]
[1727976805563,4.2626,2346.0,2345.6,0.54889864]
[1727976805721,5.03495,2346.4,2345.7,0.7608]
[1727976805722,4.26199,2346.4,2345.7,0.7608]
[1727976805921,4.26204,2346.3,2345.8,4.26285]
[1727976806138,4.26172,2346.5,2346.0,4.26248]
[1727976806433,4.26172,2346.5,2346.1,0.426248]
[1727976806434,4.26195,2346.4,2346.1,0.426248]
[1727976806838,4.26142,2346.7,2346.2,0.7765]
[1727976807039,4.2614,2346.7,2346.2,0.7765]
[1727976807221,4.26166,2346.5,2346.2,0.7765]
[1727976807547,4.26193,2346.4,2346.3,0.55]
[1727976808253,4.26221,2346.2,2346.0,0.55]
[1727976808456,4.26193,2346.4,2346.0,0.98592]
[1727976808656,4.26168,2346.5,2346.0,3.98592]
[1727976808961,4.26168,2346.5,2346.0,8.24835]
[1727976809548,8.52343,2346.5,2346.0,8.24835]
[1727976809756,4.26168,2346.5,2346.0,3.98592]
[1727976809922,4.26168,2346.5,2346.2,0.55]
[1727976811137,4.26143,2346.7,2346.2,4.8122]
[1727976811463,4.25979,2347.6,2346.2,4.8122]
[1727976811464,4.26107,2346.9,2346.4,4.81183]
[1727976811665,4.26077,2347.0,2346.6,4.26146]
[1727976811865,4.26112,2346.8,2346.7,0.55]
[1727976812436,4.26095,2346.9,2346.3,0.55]
[1727976812637,4.26156,2346.6,2346.3,0.55]
[1727976813178,4.26158,2346.6,2346.3,0.55]
[1727976813337,4.26158,2346.6,2346.3,1.9498175]
[1727976813539,4.26077,2347.0,2346.5,4.26158]
[1727976813540,4.26089,2347.0,2346.5,4.26158]
[1727976813779,4.26089,2347.0,2346.3,1.9498175]
[1727976813780,4.2605,2347.2,2346.8,0.55]
[1727976814162,4.26077,2347.0,2346.8,0.55]
[1727976814565,4.26049,2347.2,2346.8,0.55]
[1727976814733,4.26049,2347.2,2346.8,1.109906]
[1727976815138,4.26035,2347.3,2346.8,1.109906]
[1727976815642,3.0,2347.8,2346.2,3.0]
[1727976815643,4.26159,2346.6,2346.2,3.0]
[1727976815887,4.26159,2346.6,2346.2,4.26217]
[1727976816090,4.26159,2346.6,2346.1,9.135585]
[1727976816385,4.26166,2346.5,2346.1,1.675585]
[1727976816977,4.26169,2346.5,2346.2,0.55]
[1727976817154,4.26085,2347.0,2346.2,1.1987875]
[1727976817155,4.2615,2346.6,2346.2,1.1987875]
[1727976817978,4.2615,2346.6,2346.2,5.4609775]
[1727976818178,4.26138,2346.7,2346.2,5.4608875]
[1727976818402,8.52286,2346.7,2346.2,5.4608875]
[1727976819118,8.52286,2346.7,2346.1,0.7698]
[1727976819119,4.26215,2346.3,2346.1,0.7698]
[1727976819299,4.26166,2346.6,2346.1,5.03211]
[1727976819631,4.26108,2346.9,2346.4,4.26182]
[1727976819914,3.8011,2347.2,2346.5,0.784]
[1727976819915,4.26132,2346.7,2346.5,0.784]
[1727976820208,4.26139,2346.7,2346.5,0.784]
[1727976820407,4.26139,2346.7,2346.6,0.55]
[1727976822005,4.26139,2346.7,2346.2,0.784]
[1727976822204,4.26139,2346.7,2345.9,0.7844]
[1727976822205,4.26167,2346.5,2345.9,0.7844]
[1727976822404,0.8139,2346.7,2345.9,0.7844]
[1727976822405,1.240039,2346.7,2345.9,0.7844]
[1727976822611,0.8139,2346.7,2345.9,0.7844]
[1727976822810,4.26187,2346.4,2346.0,4.2625]
[1727976823482,4.2614,2346.7,2346.4,0.8003]
[1727976823672,4.26097,2346.9,2346.5,0.55]
[1727976823876,4.26148,2346.6,2346.5,0.55]
[1727976827306,4.26169,2346.5,2346.2,0.55]
[1727976828340,4.26148,2346.6,2346.2,0.55]
[1727976828554,8.52307,2346.6,2346.2,0.55]
[1727976828844,4.26172,2346.5,2346.2,0.55]
[1727976830408,4.26144,2346.7,2346.2,0.55]
[1727976830714,8.01752,2347.2,2346.2,0.98503]
[1727976830715,3.7571,2347.2,2346.2,0.98503]
[1727976830912,4.26109,2346.9,2346.7,0.55]
[1727976831357,7.26048,2347.2,2346.7,0.55]
[1727976831539,3.0,2347.2,2347.0,0.55]
[1727976831705,4.26012,2347.4,2347.2,0.55]
[1727976832246,0.8109,2347.8,2347.2,0.55]
[1727976832247,4.25978,2347.6,2347.2,4.81038]
[1727976832428,4.25991,2347.5,2347.2,0.55]
[1727976832633,4.26005,2347.4,2347.2,0.55]
[1727976832947,4.25991,2347.5,2347.2,0.55]
[1727976833171,4.26021,2347.3,2347.2,0.55]
[1727976833614,4.26005,2347.4,2347.0,0.55]
[1727976833816,4.26,2347.5,2347.0,4.81059]
[1727976834059,4.26003,2347.4,2347.0,4.81059]
[1727976835156,4.25925,2347.9,2347.4,0.55]
[1727976835332,4.25941,2347.8,2347.6,0.55]
[1727976836216,4.25948,2347.7,2347.6,0.55]
[1727976836626,4.25923,2347.9,2347.6,0.55]
[1727976837237,4.25948,2347.7,2347.6,0.55]
[1727976837432,4.2594,2347.8,2347.6,0.55]
[1727976837632,8.51884,2347.8,2347.6,0.55]
[1727976838080,4.25921,2347.9,2347.6,0.55]
[1727976838231,4.25909,2348.0,2347.6,0.55]
[1727976838438,4.25948,2347.7,2347.6,0.55]
[1727976839584,4.25884,2348.1,2347.6,0.55]
[1727976839876,4.25912,2347.9,2347.6,0.55]
[1727976840283,8.51839,2347.9,2347.6,0.55]
[1727976840775,4.25842,2348.3,2347.6,4.80966]
[1727976840776,4.25839,2348.3,2347.6,4.80966]
[1727976840978,4.25869,2348.2,2347.8,1.3757]
[1727976841281,4.25908,2348.0,2347.8,1.3757]
[1727976841434,4.25878,2348.1,2347.8,1.3757]
[1727976841634,4.2587,2348.2,2347.8,1.3757]
[1727976842042,4.25876,2348.1,2347.8,1.3757]
[1727976842263,4.25845,2348.3,2347.9,0.563512]
[1727976842479,0.8274,2348.8,2347.9,0.563512]
[1727976842480,0.8274,2348.8,2348.0,0.55]
[1727976842722,4.25831,2348.4,2348.0,0.55]
[1727976842993,4.25831,2348.4,2348.0,4.80885]
[1727976843182,4.25842,2348.3,2348.0,0.55]
[1727976843537,3.0,2348.7,2347.8,0.8257]
[1727976843740,4.25896,2348.0,2347.9,0.55]
[1727976844077,4.25835,2348.4,2347.9,4.80906]
[1727976844378,4.25837,2348.4,2348.1,0.55]
[1727976844671,4.25847,2348.3,2348.1,0.55]
[1727976845172,4.25858,2348.2,2348.1,0.55]
[1727976845377,5.185355,2348.2,2348.1,0.55]
[1727976845656,5.185355,2348.2,2347.4,11.71989]
[1727976845657,4.25966,2347.6,2347.5,0.7509]
[1727976845777,4.25985,2347.5,2347.2,0.7523]
[1727976846124,4.26005,2347.4,2347.2,0.7523]
[1727976846462,4.26005,2347.4,2346.9,0.7643]
[1727976846463,4.26074,2347.1,2346.9,0.7643]
[1727976846697,4.26096,2346.9,2346.6,0.7643]
[1727976846897,4.26078,2347.0,2346.6,0.7643]
[1727976847065,8.52167,2347.0,2346.7,1.31390814]
[1727976847265,4.26105,2346.9,2346.7,1.31390814]
[1727976847466,4.26078,2347.0,2346.7,1.31390814]
[1727976847767,4.2606,2347.1,2346.8,0.55]
[1727976848700,4.2606,2347.1,2346.8,1.23896681]
[1727976849116,4.26032,2347.3,2346.9,0.04460139]
[1727976849117,4.26041,2347.2,2346.9,0.04460139]
[1727976849310,4.26041,2347.2,2347.0,0.55]
[1727976849861,4.26057,2347.1,2347.0,0.55]
[1727976850704,4.26057,2347.1,2346.9,0.63520904]
[1727976851603,4.26075,2347.0,2346.9,0.55]
[1727976852018,4.26014,2347.4,2346.9,1.56438749]
[1727976852229,4.2605,2347.2,2346.9,1.56438749]
[1727976852518,4.26057,2347.1,2346.9,1.3091]
[1727976852916,7.25941,2347.8,2346.9,1.3091]
[1727976852917,4.25988,2347.5,2346.9,1.3091]
[1727976853079,4.26017,2347.4,2346.9,1.3091]
[1727976853279,4.26075,2347.0,2346.9,1.3091]
[1727976853591,4.26073,2347.1,2346.9,1.3091]
[1727976853810,5.112834,2347.1,2346.6,0.7789]
[1727976854017,4.26166,2346.5,2346.4,0.7789]
[1727976854330,8.5238,2346.4,2346.1,0.7789]
[1727976854499,4.26127,2346.8,2346.2,4.26204]
[1727976854822,4.26077,2347.0,2346.5,4.2615]
[1727976854979,4.26077,2347.0,2346.7,0.8329]
[1727976855182,4.2606,2347.1,2346.8,0.08520447]
[1727976855419,4.2606,2347.1,2346.7,0.8329]
[1727976855420,8.52132,2347.1,2346.7,0.8329]
[1727976855720,4.26085,2347.0,2346.7,0.8329]
[1727976856026,4.26085,2347.0,2346.8,0.55]
[1727976857092,4.26093,2346.9,2346.8,0.55]
[1727976857491,4.26143,2346.7,2346.4,0.8011]
[1727976857718,4.26148,2346.6,2346.4,0.8011]
[1727976857884,4.26143,2346.7,2346.4,0.8011]
[1727976858515,8.52284,2346.7,2346.4,0.8011]